bitfinex-derivatives/quotes_SOLF0:USTF0_20260314
["timestamp","ask_amount","ask_price","bid_price","bid_amount"]
[1773460215084,39.91300186,88.374,88.335,10.186]
[1773460215885,4.31300186,88.373,88.335,10.186]
[1773460232295,35.6,88.372,88.335,10.186]
[1773460237500,4.3743241,88.371,88.335,10.186]
[1773460238303,4.3743241,88.371,88.318,20.90326598]
[1773460239506,4.3743241,88.371,88.331,10.187]
[1773460243508,4.41894888,88.37,88.318,20.90326598]
[1773460244510,4.41894888,88.37,88.33,10.187]
[1773460254022,4.41894888,88.37,88.337,10.186]
[1773460264039,4.44710188,88.379,88.326,20.90326598]
[1773460264235,4.44710188,88.379,88.333,20.90326598]
[1773460264934,4.44710188,88.379,88.337,10.186]
[1773460265431,40.05230558,88.378,88.337,10.186]
[1773460265632,4.43230558,88.377,88.337,10.186]
[1773460285256,35.62,88.378,88.344,10.185]
[1773460286960,4.42546329,88.407,88.35,3.02555517]
[1773460287161,35.62,88.411,88.36,3.02555517]
[1773460287367,40.04546329,88.419,88.36,3.02555517]
[1773460288561,4.42546329,88.419,88.375,10.182]
[1773460288770,40.03565783,88.418,88.375,10.182]
[1773460289568,4.44045298,88.417,88.375,10.182]
[1773460300585,35.62,88.418,88.341,20.90326598]
[1773460300586,4.47488317,88.413,88.341,20.90326598]
[1773460300790,4.47488317,88.379,88.327,20.90326598]
[1773460300979,4.47488317,88.379,88.32,3.02249899]
[1773460302594,4.47488317,88.379,88.334,10.187]
[1773460303885,4.47488317,88.379,88.341,10.186]
[1773460312895,35.6,88.386,88.348,10.185]
[1773460315098,40.07310393,88.386,88.348,10.185]
[1773460316099,4.47340483,88.385,88.348,10.185]
[1773460331417,4.47340483,88.385,88.356,10.184]
[1773460354537,4.47340483,88.385,88.348,10.185]
[1773460360136,4.48980017,88.381,88.339,20.90326598]
[1773460361540,4.48980017,88.381,88.34,10.186]
[1773460376161,4.48980017,88.381,88.34,31.08926598]
[1773460378562,4.48980017,88.381,88.34,10.186]
[1773460379962,4.48980017,88.381,88.347,10.185]
[1773460406679,4.48980017,88.381,88.339,10.186]
[1773460407079,4.48980017,88.381,88.339,31.08926598]
[1773460409284,4.48980017,88.381,88.34,20.90326598]
[1773460411187,4.48980017,88.381,88.342,10.186]
[1773460419391,4.48980017,88.381,88.34,20.90326598]
[1773460420488,4.48980017,88.381,88.339,20.90326598]
[1773460420693,4.34331416,88.379,88.34,20.90326598]
[1773460421285,4.34331416,88.379,88.339,20.90326598]
[1773460422690,4.34331416,88.379,88.335,10.186]
[1773460424792,4.34323529,88.359,88.329,20.90326598]
[1773460424989,4.34323529,88.359,88.32,20.90326598]
[1773460425294,4.34323529,88.359,88.317,20.90326598]
[1773460426292,4.34323529,88.359,88.316,20.90326598]
[1773460426491,4.34323529,88.359,88.322,10.188]
[1773460428696,35.62,88.367,88.329,10.187]
[1773460429095,4.31814007,88.372,88.329,10.187]
[1773460434497,4.31623894,88.37,88.329,10.187]
[1773460441999,4.31355671,88.365,88.323,10.188]
[1773460443396,4.31341782,88.359,88.314,10.189]
[1773460444594,4.2865961,88.358,88.314,10.189]
[1773460447193,4.2865961,88.358,88.321,10.188]
[1773460456304,4.28385147,88.372,88.327,10.187]
[1773460457503,4.2837978,88.382,88.32,3.02528361]
[1773460457706,4.2837978,88.382,88.33,3.02528361]
[1773460458508,4.2837978,88.382,88.34,10.186]
[1773460463010,4.2837978,88.382,88.331,10.187]
[1773460464010,3.02528361,88.38,88.331,10.187]
[1773460464210,4.26080576,88.379,88.331,10.187]
[1773460464610,4.26080576,88.378,88.331,10.187]
[1773460469613,4.26292956,88.376,88.331,10.187]
[1773460472917,10.182,88.374,88.331,10.187]
[1773460474217,14.44651472,88.374,88.331,10.187]
[1773460474618,4.26451472,88.373,88.331,10.187]
[1773460481134,4.26451472,88.373,88.337,10.186]
[1773460484434,10.181,88.381,88.337,10.186]
[1773460484930,14.43981313,88.381,88.337,10.186]
[1773460485135,4.25865429,88.38,88.337,10.186]
[1773460488439,4.25865429,88.38,88.343,10.185]
[1773460492339,4.25865429,88.38,88.302,20.381]
[1773460492340,4.25801173,88.406,88.35,3.02499393]
[1773460493638,4.25801173,88.406,88.367,10.183]
[1773460502342,4.24925309,88.389,88.339,20.90326598]
[1773460502646,4.24925309,88.359,88.308,20.90326598]
[1773460502840,7.27424702,88.34,88.295,10.191]
[1773460504745,4.24925309,88.34,88.295,10.191]
[1773460511850,4.24925309,88.34,88.304,10.19]
[1773460515350,4.19924746,88.339,88.304,10.19]
[1773460518454,4.19924746,88.339,88.27,35.62]
[1773460518455,4.19924746,88.339,88.296,10.191]
[1773460519455,4.19924746,88.339,88.303,10.19]
[1773460519756,4.192619,88.353,88.3,3.02499393]
[1773460519954,4.192619,88.369,88.318,10.188]
[1773460521650,4.19161331,88.364,88.318,10.188]
[1773460524156,4.19161331,88.364,88.326,10.187]
[1773460524360,14.37142627,88.374,88.326,10.187]
[1773460526254,10.181,88.382,88.333,10.187]
[1773460526462,10.51835093,88.422,88.297,35.62]
[1773460526463,4.18821817,88.399,88.34,3.02499393]
[1773460527659,4.18816635,88.398,88.348,10.185]
[1773460529260,4.18816635,88.398,88.305,20.38]
[1773460529261,4.18816635,88.398,88.351,10.185]
[1773460538364,4.21501622,88.389,88.342,10.186]
[1773460539968,4.21501622,88.389,88.349,10.185]
[1773460540368,4.21650086,88.399,88.35,3.02443055]
[1773460541160,4.21650086,88.399,88.34,3.02443055]
[1773460542670,4.21650086,88.399,88.355,10.184]
[1773460553379,4.23599539,88.397,88.355,10.184]
[1773460561780,4.23606736,88.389,88.315,35.62]
[1773460561975,4.23606736,88.389,88.3,3.02443055]
[1773460561976,4.23600788,88.359,88.3,3.02443055]
[1773460562180,4.23600788,88.357,88.3,3.02443055]
[1773460562577,4.23600788,88.355,88.308,10.189]
[1773460563681,4.23916044,88.349,88.308,10.189]
[1773460567286,35.62,88.358,88.316,10.189]
[1773460569988,4.2960861,88.357,88.316,10.189]
[1773460582906,4.26600012,88.349,88.28,3.02443055]
[1773460583100,4.26600012,88.349,88.271,35.62]
[1773460583101,4.26600012,88.349,88.29,3.02443055]
[1773460583904,4.26600012,88.349,88.31,10.189]
[1773460584100,4.26590274,88.361,88.31,3.02443055]
[1773460584705,4.26590274,88.361,88.3,3.02443055]
[1773460585604,4.26590274,88.361,88.316,10.189]
[1773460586207,4.29046978,88.36,88.308,10.19]
[1773460586702,4.29046978,88.359,88.308,10.19]
[1773460587504,10.184,88.354,88.308,10.19]
[1773460587701,4.28888757,88.353,88.308,10.19]
[1773460589507,4.28888757,88.353,88.315,10.189]
[1773460631552,35.62,88.363,88.317,21.20233711]
[1773460631753,4.25434552,88.374,88.318,21.20233711]
[1773460631952,4.25434552,88.374,88.32,3.02671505]
[1773460632552,4.25434552,88.374,88.32,24.22905216]
[1773460633148,4.2533747,88.384,88.336,10.186]
[1773460633350,4.2533747,88.384,88.33,3.02671505]
[1773460633651,4.2533747,88.384,88.34,3.02671505]
[1773460634554,4.25843802,88.394,88.343,10.185]
[1773460634857,4.25843802,88.394,88.34,3.02671505]
[1773460635557,4.25843802,88.394,88.35,10.185]
[1773460638454,4.25843802,88.394,88.357,10.184]
[1773460642661,35.62,88.408,88.331,35.62]
[1773460642662,4.26331053,88.389,88.331,35.62]
[1773460642867,4.26331053,88.379,88.331,35.62]
[1773460643063,4.26331053,88.379,88.32,3.02671505]
[1773460643869,4.26331053,88.379,88.333,10.187]
[1773460645971,4.26331053,88.379,88.341,10.186]
[1773460646172,4.21126469,88.393,88.34,3.02671505]
[1773460647573,4.21126469,88.393,88.348,10.185]
[1773460648670,4.21312869,88.391,88.348,10.185]
[1773460650277,4.2481969,88.389,88.348,10.185]
[1773460650478,4.2481969,88.389,88.332,10.187]
[1773460650779,4.2481969,88.389,88.33,3.02671505]
[1773460651474,4.2480963,88.387,88.339,10.186]
[1773460657475,4.2480963,88.387,88.341,10.186]
[1773460669984,4.2480963,88.387,88.348,10.185]
[1773460670185,4.2480963,88.387,88.35,3.02433899]
[1773460670379,4.2480963,88.387,88.34,3.02433899]
[1773460671688,4.2480963,88.387,88.351,10.185]
[1773460696107,45.8,88.395,88.351,10.185]
[1773460696307,8.73617698,88.394,88.351,10.185]
[1773460696502,8.73617698,88.393,88.351,10.185]
[1773460696697,45.8,88.395,88.351,10.185]
[1773460696698,8.73617698,88.392,88.351,10.185]
[1773460696902,4.30358339,88.394,88.351,10.185]
[1773460703812,4.30358339,88.394,88.358,10.184]
[1773460727336,4.30358339,88.394,88.35,10.185]
[1773460736141,4.30358339,88.394,88.356,10.184]
[1773460758055,4.30358339,88.394,88.349,10.185]
[1773460794383,4.3083019,88.391,88.342,10.186]
[1773460802087,4.3083019,88.391,88.348,10.185]
[1773460802283,4.31396249,88.397,88.341,21.20233711]
[1773460802488,4.31396249,88.397,88.346,21.20233711]
[1773460802680,4.31396249,88.397,88.35,3.02414372]
[1773460804484,4.31396249,88.397,88.351,10.185]
[1773460804684,4.31396249,88.397,88.35,3.02414372]
[1773460804885,4.32216383,88.418,88.37,3.02414372]
[1773460805089,4.32216383,88.418,88.361,21.20233711]
[1773460805090,4.32216383,88.428,88.384,10.181]
[1773460805791,4.32216383,88.428,88.39,3.02414372]
[1773460805990,4.32213974,88.419,88.377,21.20233711]
[1773460806188,4.32213974,88.419,88.36,3.02414372]
[1773460807195,4.37463085,88.428,88.361,21.20233711]
[1773460807395,4.37463085,88.428,88.37,3.02414372]
[1773460807797,4.37463085,88.427,88.37,3.02414372]
[1773460808291,3.02414372,88.41,88.357,21.20233711]
[1773460808496,4.45668307,88.409,88.36,3.02414372]
[1773460809596,4.45668307,88.409,88.367,10.183]
[1773460816400,4.36001755,88.407,88.353,10.184]
[1773460816601,4.36001755,88.407,88.36,3.02414372]
[1773460817103,4.36001755,88.407,88.341,21.20233711]
[1773460817299,4.359988,88.389,88.334,21.20233711]
[1773460817499,4.359988,88.389,88.33,3.02414372]
[1773460818499,4.359988,88.389,88.343,10.185]
[1773460821305,4.359988,88.389,88.351,10.185]
[1773460821604,4.359988,88.389,88.33,24.22648083]
[1773460822197,4.3323502,88.388,88.33,3.02414372]
[1773460823700,4.33424039,88.384,88.332,10.187]
[1773460827610,4.33424039,88.384,88.339,10.186]
[1773460828301,4.33424039,88.384,88.347,10.185]
[1773460829813,4.33424039,88.384,88.354,10.184]
[1773460831316,4.33424039,88.384,88.346,10.185]
[1773460834618,4.3040562,88.401,88.35,3.02414372]
[1773460835618,4.3040562,88.401,88.36,3.02414372]
[1773460835823,4.31522431,88.419,88.36,3.02414372]
[1773460836223,4.31522431,88.419,88.379,10.181]
[1773460853241,4.31522431,88.419,88.346,35.62]
[1773460853242,4.31522431,88.419,88.387,10.18]
[1773460853428,4.28724543,88.429,88.387,10.18]
[1773460861634,4.28496345,88.399,88.348,21.09865096]
[1773460861850,10.59038692,88.46,88.319,20.377]
[1773460861851,4.28496345,88.389,88.33,3.0224209]
[1773460862339,4.28496345,88.389,88.344,10.185]
[1773460866845,4.28496345,88.389,88.351,10.185]
[1773460874750,7.29426173,88.4,88.358,10.184]
[1773460874951,4.27184083,88.4,88.358,10.184]
[1773460876644,4.28054346,88.41,88.369,10.182]
[1773460881547,14.45854346,88.41,88.369,10.182]
[1773460881739,4.28649746,88.409,88.369,10.182]
[1773460889053,4.28496022,88.407,88.362,10.183]
[1773460890546,10.178,88.406,88.362,10.183]
[1773460890751,14.45917855,88.406,88.362,10.183]
[1773460891053,4.28117855,88.405,88.362,10.183]
[1773460893555,4.28117855,88.405,88.37,10.182]
[1773460896158,4.28117855,88.405,88.363,10.183]
[1773460898064,3.0224209,88.41,88.353,10.184]
[1773460898065,4.24946038,88.403,88.353,10.184]
[1773460898256,4.24946038,88.403,88.34,3.0224209]
[1773460898456,4.24946038,88.403,88.35,3.0224209]
[1773460899555,4.24872031,88.402,88.359,10.184]
[1773460910876,4.24872031,88.402,88.366,10.183]
[1773460922269,4.21310252,88.379,88.32,3.02329204]
[1773460922577,4.21310252,88.388,88.33,3.02329204]
[1773460922774,12.98601065,88.387,88.33,3.02329204]
[1773460923072,8.77290813,88.386,88.33,3.02329204]
[1773460923279,4.21310252,88.387,88.33,3.02329204]
[1773460923576,4.21310252,88.387,88.346,10.185]
[1773460933901,4.21310252,88.387,88.338,10.186]
[1773460935600,4.29003589,88.385,88.338,10.186]
[1773460935999,4.29003589,88.369,88.338,10.186]
[1773460938599,4.29003589,88.369,88.32,3.02329204]
[1773460939502,4.29003589,88.369,88.332,10.187]
[1773460940100,4.28152877,88.389,88.358,10.184]
[1773460940299,4.28152877,88.389,88.34,3.02329204]
[1773460941303,4.28152877,88.389,88.33,3.02329204]
[1773460942609,4.28152877,88.389,88.346,10.185]
[1773460957308,4.26441282,88.387,88.346,10.185]
[1773460959117,4.26441282,88.387,88.338,10.186]
[1773460960619,4.2630864,88.376,88.33,10.187]
[1773460964818,4.2630864,88.376,88.33,13.21029204]
[1773460969531,4.2630864,88.376,88.33,13.211916]
[1773460972024,4.2630864,88.376,88.336,10.186]
[1773460983838,4.2620873,88.386,88.343,10.185]
[1773460996146,13.204916,88.39,88.343,10.185]
[1773460996443,4.33168577,88.389,88.343,10.185]
[1773460999443,4.33049091,88.383,88.336,10.186]
[1773460999646,4.33049091,88.379,88.336,10.186]
[1773461000547,4.33047562,88.377,88.336,10.186]
[1773461000751,4.33047562,88.387,88.34,3.024916]
[1773461000945,4.33047562,88.409,88.35,3.024916]
[1773461001150,46.21038692,88.42,88.35,3.024916]
[1773461001151,4.33047562,88.407,88.35,3.024916]
[1773461001349,4.33047562,88.407,88.36,3.024916]
[1773461001650,4.33047562,88.407,88.37,3.024916]
[1773461002046,4.33047562,88.407,88.36,3.024916]
[1773461002246,4.33047562,88.407,88.359,10.184]
[1773461002450,4.33047562,88.407,88.36,3.024916]
[1773461003552,4.33047562,88.407,88.362,10.183]
[1773461005645,4.44354184,88.417,88.37,3.024916]
[1773461006545,10.176,88.422,88.371,10.182]
[1773461006746,10.176,88.422,88.38,3.024916]
[1773461010457,10.176,88.422,88.371,10.182]
[1773461014160,4.46035367,88.43,88.39,3.024916]
[1773461014657,4.46035367,88.43,88.388,10.18]
[1773461016055,4.46038259,88.429,88.343,20.371]
[1773461016356,4.46038259,88.419,88.35,3.024916]
[1773461017058,4.46038259,88.419,88.36,3.024916]
[1773461017660,4.45544708,88.418,88.366,10.183]
[1773461018760,4.4581155,88.415,88.366,10.183]
[1773461024060,4.45960613,88.412,88.366,10.183]
[1773461025562,4.46220357,88.41,88.366,10.183]
[1773461037276,4.46220357,88.41,88.373,10.182]
[1773461061687,4.44839289,88.434,88.387,10.18]
[1773461063387,4.41566241,88.444,88.397,10.179]
[1773461063588,4.41566241,88.444,88.4,3.02262148]
[1773461064186,4.41566241,88.444,88.402,10.179]
[1773461064383,4.41811637,88.458,88.402,10.179]
[1773461064689,4.41811637,88.456,88.402,10.179]
[1773461067886,4.41811637,88.456,88.41,10.178]
[1773461068288,4.41811637,88.456,88.41,13.20062148]
[1773461068488,4.41811637,88.456,88.41,10.178]
[1773461070783,4.43388825,88.449,88.38,3.02262148]
[1773461070989,4.43388825,88.429,88.376,35.62]
[1773461072686,4.43388825,88.429,88.384,10.181]
[1773461078293,10.175,88.437,88.391,10.18]
[1773461078792,4.43309867,88.439,88.391,10.18]
[1773461078993,14.60709867,88.446,88.398,10.179]
[1773461079195,4.43223328,88.459,88.41,3.02262148]
[1773461080294,4.43223328,88.459,88.413,10.177]
[1773461088496,4.43223328,88.459,88.42,10.177]
[1773461089702,4.4873192,88.481,88.42,3.02262148]
[1773461090000,4.4873192,88.481,88.43,3.02262148]
[1773461091204,10.53645191,88.524,88.4,35.6]
[1773461091205,4.48579268,88.516,88.46,3.02262148]
[1773461091397,4.5304367,88.509,88.44,3.02262148]
[1773461091705,4.5304367,88.499,88.44,3.02262148]
[1773461092307,4.5304367,88.499,88.45,3.02262148]
[1773461093608,4.5304367,88.499,88.455,10.173]
[1773461093810,4.56921641,88.489,88.42,3.01649948]
[1773461095407,4.57177069,88.479,88.42,3.01649948]
[1773461095708,4.57177069,88.469,88.397,35.6]
[1773461095906,4.57177069,88.469,88.41,3.01649948]
[1773461096508,4.57177069,88.469,88.422,10.176]
[1773461098305,4.54825314,88.466,88.411,10.178]
[1773461099611,4.552589,88.463,88.411,10.178]
[1773461101015,4.54986795,88.459,88.402,10.179]
[1773461101918,4.54335688,88.446,88.394,10.18]
[1773461102216,4.54335688,88.446,88.39,3.01649948]
[1773461102515,4.54335688,88.446,88.402,10.179]
[1773461107721,4.54335688,88.446,88.394,10.18]
[1773461107922,4.53520388,88.439,88.394,10.18]
[1773461108819,4.53641279,88.436,88.385,10.181]
[1773461109416,4.53635401,88.429,88.385,10.181]
[1773461117724,4.52955964,88.424,88.376,10.182]
[1773461120127,4.52955964,88.424,88.383,10.181]
[1773461129233,4.52955964,88.424,88.389,10.18]
[1773461130228,4.51907342,88.439,88.389,10.18]
[1773461130628,4.51906473,88.438,88.389,10.18]
[1773461131528,4.51868439,88.436,88.389,10.18]
[1773461138238,4.51868439,88.436,88.395,10.179]
[1773461138538,4.51868439,88.436,88.34,33.92]
[1773461138539,4.50651133,88.448,88.4,3.01649948]
[1773461138732,14.05657102,88.508,88.33,158.47]
[1773461138733,4.50651133,88.469,88.41,3.01649948]
[1773461139538,4.50651133,88.469,88.43,10.175]
[1773461146330,4.50651133,88.469,88.422,10.176]
[1773461146532,4.50651133,88.469,88.41,3.01649948]
[1773461147740,4.53707404,88.467,88.413,10.177]
[1773461147942,3.01649948,88.45,88.39,3.01649948]
[1773461148239,4.53707404,88.449,88.38,3.01649948]
[1773461149633,3.01649948,88.45,88.396,10.179]
[1773461149634,4.54580877,88.447,88.396,10.179]
[1773461150636,4.54580877,88.447,88.403,10.179]
[1773461157543,4.54580877,88.447,88.409,10.178]
[1773461160944,4.54580877,88.447,88.4,10.179]
[1773461167252,4.54580877,88.447,88.408,10.178]
[1773461169154,4.55671762,88.445,88.401,10.179]
[1773461171552,4.54740477,88.44,88.392,10.18]
[1773461171757,4.54740477,88.44,88.39,3.02053799]
[1773461172454,4.54740477,88.44,88.398,10.179]
[1773461173560,4.5490237,88.424,88.374,10.182]
[1773461173854,4.5490237,88.424,88.37,3.02053799]
[1773461174057,4.5490237,88.439,88.39,3.02053799]
[1773461174458,4.55540784,88.46,88.41,3.02053799]
[1773461175657,4.55540784,88.46,88.415,10.177]
[1773461185062,4.55540784,88.46,88.422,10.176]
[1773461194355,3.02053799,88.47,88.431,10.175]
[1773461194562,4.5334473,88.471,88.431,10.175]
[1773461202569,4.5334473,88.471,88.439,10.174]
[1773461204667,10.169,88.488,88.446,10.174]
[1773461204867,4.53267203,88.486,88.446,10.174]
[1773461208767,4.53267203,88.486,88.453,10.173]
[1773461211073,4.53267203,88.486,88.44,3.02053799]
[1773461211274,4.53128189,88.498,88.44,3.02053799]
[1773461212580,4.53128189,88.498,88.463,10.172]
[1773461213283,4.53198912,88.519,88.473,10.171]
[1773461213484,3.02053799,88.52,88.473,10.171]
[1773461213485,4.53198912,88.517,88.473,10.171]
[1773461215784,4.54589063,88.509,88.464,10.172]
[1773461215984,4.54589063,88.499,88.44,3.01587243]
[1773461217686,4.54589063,88.499,88.463,10.172]
[1773461226997,4.54589063,88.499,88.471,10.171]
[1773461233106,4.54589063,88.499,88.464,10.172]
[1773461234508,4.54589063,88.499,88.45,3.01587243]
[1773461234803,4.54589063,88.499,88.44,3.01587243]
[1773461235008,4.54589063,88.499,88.428,35.58]
[1773461235009,4.54922763,88.51,88.473,10.17]
[1773461237104,4.54922763,88.51,88.466,10.171]
[1773461240314,4.52076425,88.509,88.466,10.171]
[1773461246613,35.58,88.535,88.411,28.14799429]
[1773461246614,4.53245097,88.489,88.411,28.14799429]
[1773461246814,4.53245097,88.489,88.43,3.01587243]
[1773461247716,4.53245097,88.489,88.443,10.174]
[1773461248112,4.53245097,88.489,88.399,28.14799429]
[1773461248317,4.49676301,88.487,88.42,3.01587243]
[1773461249619,4.51312784,88.484,88.434,10.175]
[1773461249819,3.01587243,88.48,88.434,10.175]
[1773461250019,4.51312784,88.479,88.434,10.175]
[1773461253621,4.51836045,88.469,88.425,10.176]
[1773461253825,4.51836045,88.469,88.401,35.58]
[1773461254617,4.52982315,88.468,88.416,10.177]
[1773461255326,4.52982315,88.468,88.423,10.176]
[1773461256923,4.53564977,88.469,88.423,10.176]
[1773461257726,4.53564977,88.469,88.43,10.175]
[1773461262430,4.53466742,88.468,88.421,10.176]
[1773461276243,4.52530811,88.463,88.421,10.176]
[1773461279449,4.52530811,88.463,88.427,10.176]
[1773461280644,4.52530811,88.463,88.437,10.175]
[1773461282441,4.52004595,88.476,88.445,10.174]
[1773461282647,4.52004595,88.489,88.445,10.174]
[1773461282950,4.52004595,88.489,88.43,3.01913457]
[1773461283450,4.52004595,88.489,88.401,35.58]
[1773461283451,4.52004595,88.489,88.44,3.01913457]
[1773461284344,8.72670315,88.51,88.408,20.356]
[1773461284345,4.51312045,88.5,88.457,10.172]
[1773461285147,4.51312045,88.5,88.467,10.171]
[1773461285353,4.51162318,88.519,88.467,10.171]
[1773461285945,7.53466361,88.51,88.467,10.171]
[1773461286255,4.51552904,88.509,88.467,10.171]
[1773461286457,4.51552904,88.509,88.472,10.171]
[1773461288556,4.50951388,88.526,88.472,10.171]
[1773461289154,35.6,88.541,88.472,10.171]
[1773461289155,4.50951388,88.519,88.472,10.171]
[1773461290753,4.50951388,88.519,88.48,10.17]
[1773461294159,4.50951388,88.519,88.415,28.14799429]
[1773461294160,31.75000586,88.572,88.526,10.164]
[1773461294459,31.75002631,88.559,88.5,3.01913457]
[1773461294663,31.75002631,88.559,88.503,10.167]
[1773461300565,31.75002631,88.559,88.47,62.0]
[1773461300566,31.6031572,88.529,88.47,3.01913457]
[1773461300767,31.6031572,88.509,88.45,3.01913457]
[1773461301465,31.6031572,88.509,88.465,10.171]
[1773461302269,3.01913457,88.52,88.474,10.17]
[1773461302465,31.48667538,88.521,88.474,10.17]
[1773461303865,34.49488697,88.52,88.474,10.17]
[1773461305672,31.47735334,88.533,88.487,10.169]
[1773461305875,31.47735334,88.529,88.487,10.169]
[1773461314970,31.46684052,88.509,88.478,10.17]
[1773461315175,31.46684052,88.499,88.44,3.01913457]
[1773461316573,31.46684052,88.499,88.464,10.171]
[1773461326084,31.46684052,88.499,88.44,3.01913457]
[1773461327387,31.46684052,88.499,88.467,10.171]
[1773461327877,3.01913457,88.51,88.432,20.90424947]
[1773461327878,34.51766145,88.51,88.45,3.01913457]
[1773461328284,34.51766145,88.51,88.44,3.01913457]
[1773461328988,34.51766145,88.51,88.466,10.171]
[1773461332890,34.51766145,88.51,88.473,10.17]
[1773461333187,3.01913457,88.52,88.46,3.01913457]
[1773461333391,31.50287409,88.521,88.46,3.01913457]
[1773461333594,31.50287409,88.521,88.47,3.01913457]
[1773461334489,31.50287409,88.521,88.489,10.169]
[1773461342897,31.50287409,88.521,88.498,10.168]
[1773461343412,3.01519925,88.53,88.498,10.168]
[1773461343808,34.52175453,88.53,88.498,10.168]
[1773461351614,31.50655528,88.53,88.498,10.168]
[1773461352513,34.52175453,88.53,88.498,10.168]
[1773461355121,34.52175453,88.53,88.49,10.169]
[1773461361524,31.50655528,88.53,88.49,10.169]
[1773461367630,34.52175453,88.53,88.49,10.169]
[1773461369730,31.50655528,88.53,88.49,10.169]
[1773461370629,34.52175453,88.53,88.49,10.169]
[1773461372727,31.50655528,88.53,88.49,10.169]
[1773461373532,31.50655528,88.53,88.498,10.168]
[1773461375532,31.55772488,88.548,88.49,3.01519925]
[1773461375826,31.55772488,88.548,88.491,20.90424947]
[1773461376636,31.55772488,88.548,88.513,10.166]
[1773461379543,31.55772488,88.548,88.521,10.165]
[1773461380339,31.55772488,88.548,88.528,10.164]
[1773461380540,31.55772488,88.548,88.5,3.01519925]
[1773461381641,31.55772488,88.548,88.52,10.165]
[1773461384947,31.55772488,88.548,88.5,3.01519925]
[1773461384948,31.55772488,88.548,88.51,10.166]
[1773461387046,31.55772488,88.548,88.491,35.56]
[1773461387047,31.55772488,88.548,88.502,10.167]
[1773461390147,31.55772488,88.548,88.509,10.166]
[1773461393460,31.56424061,88.546,88.502,10.167]
[1773461393650,31.56424061,88.539,88.502,10.167]
[1773461395654,31.56424061,88.539,88.51,10.166]
[1773461397258,31.56424061,88.539,88.517,10.165]
[1773461398457,31.56993769,88.55,88.517,10.165]
[1773461401864,34.58387212,88.55,88.509,10.166]
[1773461402161,31.56761108,88.539,88.509,10.166]
[1773461403566,31.56691506,88.549,88.516,10.166]
[1773461407862,31.55892062,88.539,88.486,20.90424947]
[1773461408170,31.55892062,88.529,88.474,20.90424947]
[1773461409670,31.55892062,88.529,88.49,10.169]
[1773461411877,31.46997064,88.519,88.482,10.17]
[1773461420081,31.46997064,88.519,88.489,10.169]
[1773461424181,31.46997064,88.519,88.497,10.168]
[1773461424484,31.46997064,88.519,88.48,3.01393443]
[1773461424684,31.46997064,88.519,88.47,23.9181839]
[1773461425186,31.46997064,88.519,88.47,3.01393443]
[1773461425586,31.46997064,88.519,88.489,10.169]
[1773461450616,31.46997064,88.519,88.472,20.90424947]
[1773461451210,31.46997064,88.519,88.495,10.168]
[1773461452707,35.56,88.541,88.48,3.01393443]
[1773461452708,26.29114377,88.526,88.501,10.167]
[1773461453209,26.29114377,88.54,88.5,3.01393443]
[1773461454506,26.29114377,88.54,88.512,10.166]
[1773461455107,26.29114377,88.54,88.5,3.01393443]
[1773461456606,26.29114377,88.54,88.519,10.165]
[1773461463219,26.29114377,88.54,88.511,10.166]
[1773461471126,26.29114377,88.54,88.497,35.56]
[1773461472118,26.29114377,88.54,88.505,10.167]
[1773461487943,26.29114377,88.54,88.511,10.166]
[1773461503754,26.29114377,88.54,88.517,10.165]
[1773461506450,35.00035244,88.559,88.51,3.01268035]
[1773461506657,26.32556444,88.559,88.51,3.01268035]
[1773461507656,26.32556444,88.559,88.531,10.164]
[1773461518964,26.32556444,88.559,88.521,10.165]
[1773461535680,26.29593201,88.549,88.501,20.90424947]
[1773461535880,26.29593201,88.549,88.493,35.56]
[1773461536279,26.29593201,88.549,88.493,56.46424947]
[1773461537781,26.29593201,88.549,88.511,10.166]
[1773461553496,26.29593201,88.549,88.518,10.165]
[1773461555992,10.162,88.548,88.5,3.01231504]